[Event "*** Titled Tuesday Blitz"]
[Site "Chess.com"]
[Date "2020.05.19"]
[Round "4"]
[White "BakaPG"]
[Black "penguingm1"]
[Result "0-1"]
[WhiteElo "2609"]
[BlackElo "2882"]
[TimeControl "180+1"]
[EndTime "12:40:16 PDT"]
[Termination "penguingm1 won by resignation"]

1. e4 {[%clk 0:03:00.9]} 1... e5 {[%clk 0:02:59.2]} 2. Nf3 {[%clk 0:03:00.1]}
2... Nc6 {[%clk 0:02:58]} 3. Bb5 {[%clk 0:02:59.8]} 3... g6 {[%clk 0:02:57.5]}
4. O-O {[%clk 0:02:58.7]} 4... Bg7 {[%clk 0:02:57.2]} 5. c3 {[%clk 0:02:58.8]}
5... a6 {[%clk 0:02:57.8]} 6. Ba4 {[%clk 0:02:58.2]} 6... b5 {[%clk 0:02:58.5]}
7. Bb3 {[%clk 0:02:56.1]} 7... Na5 {[%clk 0:02:58.9]} 8. Bc2 {[%clk 0:02:55.2]}
8... Ne7 {[%clk 0:02:59.6]} 9. d4 {[%clk 0:02:55]} 9... exd4 {[%clk 0:02:56.7]}
10. cxd4 {[%clk 0:02:52.8]} 10... O-O {[%clk 0:02:56.9]} 11. Nbd2 {[%clk
0:02:45.8]} 11... d6 {[%clk 0:02:54.1]} 12. h3 {[%clk 0:02:42]} 12... c5 {[%clk
0:02:49.1]} 13. Nb3 {[%clk 0:02:37]} 13... Nxb3 {[%clk 0:02:35.7]} 14. axb3
{[%clk 0:02:30.2]} 14... cxd4 {[%clk 0:02:19.8]} 15. Nxd4 {[%clk 0:02:27.3]}
15... Bb7 {[%clk 0:02:19.9]} 16. b4 {[%clk 0:02:11.6]} 16... d5 {[%clk
0:02:15.6]} 17. Nb3 {[%clk 0:02:06.9]} 17... dxe4 {[%clk 0:01:55.6]} 18. Nc5
{[%clk 0:02:03.4]} 18... Bc6 {[%clk 0:01:55.8]} 19. Rxa6 {[%clk 0:01:30.7]}
19... Rxa6 {[%clk 0:01:44.3]} 20. Nxa6 {[%clk 0:01:30.2]} 20... Qa8 {[%clk
0:01:42.2]} 21. Nc5 {[%clk 0:01:27.4]} 21... e3 {[%clk 0:01:42.8]} 22. fxe3
{[%clk 0:01:20.2]} 22... Bxg2 {[%clk 0:01:40.9]} 23. Rf2 {[%clk 0:01:18.7]}
23... Bxh3 {[%clk 0:01:40.3]} 24. Bb3 {[%clk 0:01:15.3]} 24... Nc6 {[%clk
0:01:33]} 25. Bd2 {[%clk 0:01:12.4]} 25... Ne5 {[%clk 0:01:28.3]} 26. e4 {[%clk
0:01:09.2]} 26... Rd8 {[%clk 0:01:23.1]} 27. Qe2 {[%clk 0:01:03]} 27... Qa1+
{[%clk 0:01:12.6]} 28. Be1 {[%clk 0:00:59.8]} 28... Bg4 {[%clk 0:01:10.9]} 29.
Qf1 {[%clk 0:00:55.1]} 29... Nf3+ {[%clk 0:01:07.9]} 30. Rxf3 {[%clk 0:00:46.5]}
30... Bxf3 {[%clk 0:01:08.3]} 31. Bxf7+ {[%clk 0:00:23.7]} 31... Kh8 {[%clk
0:01:08.4]} 32. Bd5 {[%clk 0:00:20]} 32... Bd4+ {[%clk 0:00:59.4]} 33. Bf2
{[%clk 0:00:20.1]} 33... Qxb2 {[%clk 0:00:50]} 34. Nd3 {[%clk 0:00:18.9]} 34...
Bxf2+ {[%clk 0:00:38.1]} 35. Nxf2 {[%clk 0:00:17.8]} 35... Rc8 {[%clk
0:00:31.5]} 36. Kh2 {[%clk 0:00:10.7]} 36... Rc1 {[%clk 0:00:27.4]} 0-1

[Event "*** Titled Tuesday Blitz"]
[Site "Chess.com"]
[Date "2020.05.19"]
[Round "4"]
[White "Dynamikus"]
[Black "LiverpooL174"]
[Result "0-1"]
[WhiteElo "2725"]
[BlackElo "2530"]
[TimeControl "180+1"]
[EndTime "12:40:16 PDT"]
[Termination "LiverpooL174 won by resignation"]

1. e4 {[%clk 0:03:00.9]} 1... c6 {[%clk 0:03:00.1]} 2. d4 {[%clk 0:03:00.8]}
2... d5 {[%clk 0:03:01]} 3. Nd2 {[%clk 0:03:01.4]} 3... dxe4 {[%clk 0:03:01.5]}
4. Nxe4 {[%clk 0:03:02.3]} 4... Bf5 {[%clk 0:03:02.3]} 5. Ng3 {[%clk 0:03:02.6]}
5... Bg6 {[%clk 0:03:02.8]} 6. Nf3 {[%clk 0:03:02.8]} 6... Nf6 {[%clk 0:03:03]}
7. Bc4 {[%clk 0:03:02.8]} 7... e6 {[%clk 0:03:02.2]} 8. O-O {[%clk 0:03:03]}
8... Bd6 {[%clk 0:02:59.7]} 9. Re1 {[%clk 0:03:03.4]} 9... O-O {[%clk
0:02:59.6]} 10. Ne5 {[%clk 0:03:01.8]} 10... Nbd7 {[%clk 0:02:58.5]} 11. Nxg6
{[%clk 0:03:00.9]} 11... hxg6 {[%clk 0:02:59.4]} 12. Bb3 {[%clk 0:02:59.9]}
12... Qc7 {[%clk 0:02:57.1]} 13. c3 {[%clk 0:02:57.6]} 13... Rfe8 {[%clk
0:02:54.8]} 14. Bg5 {[%clk 0:02:56.3]} 14... a5 {[%clk 0:02:53.7]} 15. a4 {[%clk
0:02:55.7]} 15... Nd5 {[%clk 0:02:51.1]} 16. Ne4 {[%clk 0:02:44.3]} 16... Bxh2+
{[%clk 0:02:44.8]} 17. Kh1 {[%clk 0:02:43]} 17... Bf4 {[%clk 0:02:45.5]} 18. g3
{[%clk 0:02:40.1]} 18... Bxg5 {[%clk 0:02:44.6]} 19. Nxg5 {[%clk 0:02:41]} 19...
N7f6 {[%clk 0:02:41.5]} 20. Kg2 {[%clk 0:02:39.1]} 20... c5 {[%clk 0:02:40.1]}
21. Rh1 {[%clk 0:02:15.6]} 21... Rad8 {[%clk 0:02:39.1]} 22. Rh4 {[%clk
0:02:11.1]} 22... cxd4 {[%clk 0:02:35.5]} 23. cxd4 {[%clk 0:02:01.5]} 23... e5
{[%clk 0:02:26.8]} 24. Qf3 {[%clk 0:01:37.6]} 24... e4 {[%clk 0:02:24.5]} 25.
Nxe4 {[%clk 0:01:37.3]} 25... Nxe4 {[%clk 0:02:24.9]} 26. Rxe4 {[%clk
0:01:37.8]} 26... Rxe4 {[%clk 0:02:25.5]} 27. Qxe4 {[%clk 0:01:38.4]} 27... Nf6
{[%clk 0:02:23.9]} 28. Qxg6 {[%clk 0:01:28]} 28... Rxd4 {[%clk 0:02:18.6]} 29.
Re1 {[%clk 0:01:11.1]} 29... Rb4 {[%clk 0:02:10.1]} 30. Qd3 {[%clk 0:01:03.3]}
30... Qd7 {[%clk 0:02:10.4]} 31. Qe3 {[%clk 0:00:29.8]} 31... g6 {[%clk
0:02:02.5]} 32. Re2 {[%clk 0:00:20.5]} 32... Kg7 {[%clk 0:01:59.7]} 33. Qf3
{[%clk 0:00:15.5]} 33... Qc6 {[%clk 0:01:59.6]} 34. Qxc6 {[%clk 0:00:15.2]}
34... bxc6 {[%clk 0:01:59.8]} 35. Ba2 {[%clk 0:00:14.3]} 35... Rxa4 {[%clk
0:01:59.1]} 36. Bb1 {[%clk 0:00:14.7]} 36... Rb4 {[%clk 0:01:57.5]} 37. Bd3
{[%clk 0:00:14.2]} 37... a4 {[%clk 0:01:54.3]} 38. Rc2 {[%clk 0:00:14.2]} 38...
Nd7 {[%clk 0:01:51.6]} 39. f4 {[%clk 0:00:12.8]} 39... c5 {[%clk 0:01:47.3]} 40.
Kf2 {[%clk 0:00:12.4]} 40... Kf6 {[%clk 0:01:46.3]} 41. Ke3 {[%clk 0:00:12.5]}
41... g5 {[%clk 0:01:43.2]} 42. fxg5+ {[%clk 0:00:11.8]} 42... Kxg5 {[%clk
0:01:44.1]} 43. Rf2 {[%clk 0:00:11.6]} 43... f6 {[%clk 0:01:41.8]} 44. Be4
{[%clk 0:00:06.5]} 44... Rb3+ {[%clk 0:01:39.4]} 45. Kd2 {[%clk 0:00:04.4]}
45... Rxb2+ {[%clk 0:01:39]} 46. Bc2 {[%clk 0:00:05]} 46... a3 {[%clk
0:01:37.5]} 47. Kc3 {[%clk 0:00:05.4]} 47... Kg4 {[%clk 0:01:25.3]} 48. Bf5+
{[%clk 0:00:04.7]} 48... Kxg3 {[%clk 0:01:25.2]} 49. Rxb2 {[%clk 0:00:02.5]}
49... axb2 {[%clk 0:01:26.1]} 50. Kxb2 {[%clk 0:00:02.9]} 50... Ne5 {[%clk
0:01:26.3]} 51. Kc3 {[%clk 0:00:03.5]} 51... Kf4 {[%clk 0:01:24.3]} 52. Be6
{[%clk 0:00:03.8]} 52... f5 {[%clk 0:01:23.8]} 53. Bd5 {[%clk 0:00:04.4]} 53...
Ke3 {[%clk 0:01:23.7]} 54. Kc2 {[%clk 0:00:04.4]} 54... f4 {[%clk 0:01:24.3]}
55. Kc3 {[%clk 0:00:05.1]} 55... f3 {[%clk 0:01:24.9]} 56. Bxf3 {[%clk
0:00:05.8]} 56... Kxf3 {[%clk 0:01:25]} 57. Kd2 {[%clk 0:00:06.4]} 57... Ke4
{[%clk 0:01:25.4]} 58. Kc3 {[%clk 0:00:07.3]} 58... Kd5 {[%clk 0:01:26.3]} 0-1

[Event "*** Titled Tuesday Blitz"]
[Site "Chess.com"]
[Date "2020.05.19"]
[Round "4"]
[White "Abdodi"]
[Black "SlavenPastar"]
[Result "0-1"]
[WhiteElo "2150"]
[BlackElo "2388"]
[TimeControl "180+1"]
[EndTime "12:40:16 PDT"]
[Termination "SlavenPastar won by resignation"]

1. e4 {[%clk 0:03:00.9]} 1... e5 {[%clk 0:02:58.6]} 2. Nf3 {[%clk 0:02:58.3]}
2... Nc6 {[%clk 0:02:59.1]} 3. Bb5 {[%clk 0:02:57.1]} 3... Nf6 {[%clk
0:02:58.2]} 4. d3 {[%clk 0:02:56.2]} 4... Bc5 {[%clk 0:02:56.8]} 5. c3 {[%clk
0:02:39]} 5... d6 {[%clk 0:02:54.5]} 6. O-O {[%clk 0:02:30]} 6... O-O {[%clk
0:02:52.8]} 7. d4 {[%clk 0:02:26.8]} 7... exd4 {[%clk 0:02:52.3]} 8. cxd4 {[%clk
0:02:26.8]} 8... Bb6 {[%clk 0:02:52.9]} 9. Bg5 {[%clk 0:02:12.8]} 9... h6 {[%clk
0:02:48.2]} 10. Bh4 {[%clk 0:02:05.7]} 10... Bg4 {[%clk 0:02:46.6]} 11. Bxc6
{[%clk 0:02:02.4]} 11... bxc6 {[%clk 0:02:45.8]} 12. Qd3 {[%clk 0:01:20.2]}
12... Re8 {[%clk 0:02:19.8]} 13. Nbd2 {[%clk 0:01:15.7]} 13... g5 {[%clk
0:02:06.2]} 14. Bg3 {[%clk 0:01:13.7]} 14... Bxf3 {[%clk 0:02:02.3]} 15. gxf3
{[%clk 0:01:11.5]} 15... Nh5 {[%clk 0:01:56.2]} 16. Kh1 {[%clk 0:01:08.1]} 16...
Qf6 {[%clk 0:01:54.1]} 17. Rae1 {[%clk 0:00:57.5]} 17... Bxd4 {[%clk 0:01:45.1]}
18. b3 {[%clk 0:00:47.7]} 18... d5 {[%clk 0:01:38.2]} 19. Bxc7 {[%clk
0:00:37.9]} 19... Be5 {[%clk 0:01:24.2]} 20. Bxe5 {[%clk 0:00:34.4]} 20... Rxe5
{[%clk 0:01:25.1]} 21. Qc3 {[%clk 0:00:28.5]} 21... Rae8 {[%clk 0:01:18.7]} 22.
Re3 {[%clk 0:00:21.9]} 22... c5 {[%clk 0:00:46.3]} 23. Qxc5 {[%clk 0:00:13.9]}
23... dxe4 {[%clk 0:00:40.8]} 24. Nxe4 {[%clk 0:00:13.8]} 24... Rxc5 {[%clk
0:00:38.1]} 25. Nxf6+ {[%clk 0:00:13.3]} 25... Nxf6 {[%clk 0:00:39]} 26. Rd1
{[%clk 0:00:11.2]} 26... Rxe3 {[%clk 0:00:35.8]} 27. fxe3 {[%clk 0:00:12.1]}
27... Rc2 {[%clk 0:00:35.6]} 28. Rd6 {[%clk 0:00:11]} 28... Kg7 {[%clk
0:00:24.1]} 29. Ra6 {[%clk 0:00:11.4]} 29... Nd7 {[%clk 0:00:22.2]} 30. Rxa7
{[%clk 0:00:10.7]} 30... Ne5 {[%clk 0:00:22.4]} 31. f4 {[%clk 0:00:10.7]} 31...
Nf3 {[%clk 0:00:22.5]} 0-1

[Event "*** Titled Tuesday Blitz"]
[Site "Chess.com"]
[Date "2020.05.19"]
[Round "4"]
[White "12teen"]
[Black "THE_PLAYER6"]
[Result "1-0"]
[WhiteElo "2741"]
[BlackElo "2502"]
[TimeControl "180+1"]
[EndTime "12:40:17 PDT"]
[Termination "12teen won by checkmate"]

1. e4 {[%clk 0:03:00.9]} 1... c5 {[%clk 0:02:59.6]} 2. Nc3 {[%clk 0:02:57.3]}
2... Nc6 {[%clk 0:02:59.3]} 3. g3 {[%clk 0:02:57.9]} 3... g6 {[%clk 0:02:58.5]}
4. Bg2 {[%clk 0:02:58.4]} 4... Bg7 {[%clk 0:02:58.9]} 5. f4 {[%clk 0:02:59]}
5... e6 {[%clk 0:02:55.7]} 6. d3 {[%clk 0:02:59.1]} 6... Nge7 {[%clk 0:02:45.8]}
7. Nf3 {[%clk 0:02:57.8]} 7... d6 {[%clk 0:02:40.8]} 8. h4 {[%clk 0:02:56.9]}
8... h5 {[%clk 0:02:32]} 9. Ng5 {[%clk 0:02:54.7]} 9... Nd4 {[%clk 0:02:28.5]}
10. Ne2 {[%clk 0:02:54.3]} 10... Rb8 {[%clk 0:02:21.8]} 11. c3 {[%clk
0:02:51.7]} 11... Nxe2 {[%clk 0:02:21.4]} 12. Qxe2 {[%clk 0:02:52.6]} 12... b5
{[%clk 0:02:21.9]} 13. O-O {[%clk 0:02:51.5]} 13... b4 {[%clk 0:02:21.9]} 14. c4
{[%clk 0:02:52]} 14... O-O {[%clk 0:02:18]} 15. g4 {[%clk 0:02:48.7]} 15... hxg4
{[%clk 0:02:13.7]} 16. Qxg4 {[%clk 0:02:49.6]} 16... e5 {[%clk 0:01:12.9]} 17.
f5 {[%clk 0:02:47.4]} 17... Qd7 {[%clk 0:01:06.2]} 18. Qf3 {[%clk 0:02:36.1]}
18... Bh6 {[%clk 0:00:50]} 19. Bh3 {[%clk 0:02:27.7]} 19... Bxg5 {[%clk
0:00:33]} 20. hxg5 {[%clk 0:02:24.9]} 20... Nc6 {[%clk 0:00:33.1]} 21. Be3
{[%clk 0:02:21]} 21... Nd4 {[%clk 0:00:32.8]} 22. Bxd4 {[%clk 0:02:21]} 22...
cxd4 {[%clk 0:00:32]} 23. Bg2 {[%clk 0:02:19.1]} 23... Rd8 {[%clk 0:00:24.8]}
24. f6 {[%clk 0:02:18.9]} 24... Qg4 {[%clk 0:00:20.6]} 25. Qxg4 {[%clk
0:02:10.4]} 25... Bxg4 {[%clk 0:00:21.5]} 26. Kf2 {[%clk 0:02:09.5]} 26... Kf8
{[%clk 0:00:19.3]} 27. Rh1 {[%clk 0:01:59.5]} 27... Ke8 {[%clk 0:00:19.7]} 28.
Rh7 {[%clk 0:01:56.4]} 28... Be6 {[%clk 0:00:19.4]} 29. Rah1 {[%clk 0:01:55.9]}
29... Kd7 {[%clk 0:00:18.6]} 30. Bh3 {[%clk 0:01:56.2]} 30... Rf8 {[%clk
0:00:17.4]} 31. Rg7 {[%clk 0:01:51.5]} 31... Rb7 {[%clk 0:00:14.7]} 32. Kg3
{[%clk 0:01:49]} 32... a5 {[%clk 0:00:14.4]} 33. Bg2 {[%clk 0:01:44.9]} 33... a4
{[%clk 0:00:14]} 34. Rhh7 {[%clk 0:01:44.7]} 34... Kc6 {[%clk 0:00:14]} 35. Bf3
{[%clk 0:01:39.2]} 35... Rd7 {[%clk 0:00:14.2]} 36. Bd1 {[%clk 0:01:38]} 36...
Ra8 {[%clk 0:00:09.9]} 37. Rh6 {[%clk 0:01:29.7]} 37... Raa7 {[%clk 0:00:09.7]}
38. Rh8 {[%clk 0:01:29.2]} 38... a3 {[%clk 0:00:07.9]} 39. b3 {[%clk 0:01:28.1]}
39... Rdc7 {[%clk 0:00:08.1]} 40. Bg4 {[%clk 0:01:24.4]} 40... Bxg4 {[%clk
0:00:07.5]} 41. Kxg4 {[%clk 0:01:25.3]} 41... Kc5 {[%clk 0:00:07]} 42. Rd8
{[%clk 0:01:23.9]} 42... Rd7 {[%clk 0:00:07.1]} 43. Re8 {[%clk 0:01:23.7]} 43...
Rac7 {[%clk 0:00:06.4]} 44. Reg8 {[%clk 0:01:18]} 44... Rb7 {[%clk 0:00:06.5]}
45. Rxg6 {[%clk 0:01:18.3]} 45... fxg6 {[%clk 0:00:06]} 46. Rxg6 {[%clk
0:01:19.2]} 46... Kc6 {[%clk 0:00:04.9]} 47. Kf5 {[%clk 0:01:18.2]} 47... Rf7
{[%clk 0:00:05.1]} 48. Rg8 {[%clk 0:01:17.6]} 48... Rbd7 {[%clk 0:00:02.8]} 49.
g6 {[%clk 0:01:17]} 49... d5 {[%clk 0:00:03.3]} 50. cxd5+ {[%clk 0:01:16.8]}
50... Kd6 {[%clk 0:00:03.2]} 51. gxf7 {[%clk 0:01:17.1]} 51... Rxf7 {[%clk
0:00:03.6]} 52. Rd8+ {[%clk 0:01:16.8]} 52... Kc5 {[%clk 0:00:03.2]} 53. Rc8+
{[%clk 0:01:16.7]} 53... Kd6 {[%clk 0:00:03.5]} 54. Kg6 {[%clk 0:01:16.1]} 54...
Rd7 {[%clk 0:00:02.2]} 55. Rc6# {[%clk 0:01:15.5]} 1-0

[Event "*** Titled Tuesday Blitz"]
[Site "Chess.com"]
[Date "2020.05.19"]
[Round "4"]
[White "mirandamikadze"]
[Black "The_Machine04"]
[Result "1-0"]
[WhiteElo "1997"]
[BlackElo "2276"]
[TimeControl "180+1"]
[EndTime "12:40:17 PDT"]
[Termination "mirandamikadze won by resignation"]

1. e4 {[%clk 0:03:00.9]} 1... d6 {[%clk 0:02:47.2]} 2. d3 {[%clk 0:02:57.6]}
2... Nf6 {[%clk 0:02:34.9]} 3. f4 {[%clk 0:02:56.5]} 3... e5 {[%clk 0:02:34.3]}
4. Nf3 {[%clk 0:02:56.6]} 4... Nc6 {[%clk 0:02:30.5]} 5. Be2 {[%clk 0:02:55]}
5... Be7 {[%clk 0:02:29.9]} 6. O-O {[%clk 0:02:54.7]} 6... O-O {[%clk
0:02:22.6]} 7. c4 {[%clk 0:02:50.3]} 7... a6 {[%clk 0:02:16.6]} 8. Nc3 {[%clk
0:02:37.1]} 8... Nd4 {[%clk 0:02:12]} 9. Nxd4 {[%clk 0:02:21]} 9... exd4 {[%clk
0:02:12.9]} 10. Nd5 {[%clk 0:02:21.2]} 10... Nxd5 {[%clk 0:02:11.8]} 11. cxd5
{[%clk 0:02:21.3]} 11... c6 {[%clk 0:02:10.8]} 12. dxc6 {[%clk 0:02:20.9]} 12...
bxc6 {[%clk 0:02:11.7]} 13. f5 {[%clk 0:02:20.6]} 13... Bf6 {[%clk 0:02:09.7]}
14. Bf4 {[%clk 0:02:19.7]} 14... Be5 {[%clk 0:02:09.6]} 15. Bxe5 {[%clk
0:02:19.9]} 15... dxe5 {[%clk 0:02:10.5]} 16. Rc1 {[%clk 0:02:16.9]} 16... Bd7
{[%clk 0:02:10]} 17. f6 {[%clk 0:02:16.2]} 17... g6 {[%clk 0:02:03.7]} 18. Qd2
{[%clk 0:02:16]} 18... Kh8 {[%clk 0:01:59.8]} 19. Qh6 {[%clk 0:02:15.2]} 19...
Rg8 {[%clk 0:01:59.6]} 20. Rf3 {[%clk 0:01:50.4]} 20... Qf8 {[%clk 0:01:58.7]}
21. Qd2 {[%clk 0:01:45.3]} 21... Rb8 {[%clk 0:01:56.6]} 22. b3 {[%clk
0:01:44.2]} 22... Qb4 {[%clk 0:01:55.1]} 23. Qxb4 {[%clk 0:01:37.1]} 23... Rxb4
{[%clk 0:01:56]} 24. Rc5 {[%clk 0:01:37.2]} 24... Rb5 {[%clk 0:01:53.8]} 25. Rc2
{[%clk 0:01:31.6]} 25... c5 {[%clk 0:01:44.8]} 26. Rf1 {[%clk 0:01:31.2]} 26...
Rc8 {[%clk 0:01:36.3]} 27. g4 {[%clk 0:01:30.9]} 27... h6 {[%clk 0:01:34.3]} 28.
h4 {[%clk 0:01:30.1]} 28... g5 {[%clk 0:01:31.6]} 29. hxg5 {[%clk 0:01:27.4]}
29... hxg5 {[%clk 0:01:32.5]} 30. Kg2 {[%clk 0:01:26.9]} 30... Kh7 {[%clk
0:01:29.8]} 31. Kg3 {[%clk 0:01:17]} 31... Kg6 {[%clk 0:01:24.6]} 32. Bd1 {[%clk
0:01:13.5]} 32... Rc6 {[%clk 0:01:18]} 33. Rh2 {[%clk 0:01:09.6]} 33... Rbb6
{[%clk 0:01:03.4]} 34. Rfh1 {[%clk 0:00:52.6]} 34... Rxf6 {[%clk 0:00:59.1]} 35.
Rh7 {[%clk 0:00:37.7]} 35... Rf3+ {[%clk 0:00:17]} 36. Bxf3 {[%clk 0:00:35.3]}
36... Kf6 {[%clk 0:00:17.5]} 37. R1h6+ {[%clk 0:00:34.2]} 37... Ke7 {[%clk
0:00:18]} 38. Rxb6 {[%clk 0:00:33.8]} 1-0

[Event "*** Titled Tuesday Blitz"]
[Site "Chess.com"]
[Date "2020.05.19"]
[Round "4"]
[White "GMBenjaminFinegold"]
[Black "Msb2"]
[Result "1-0"]
[WhiteElo "2549"]
[BlackElo "2887"]
[TimeControl "180+1"]
[EndTime "12:40:18 PDT"]
[Termination "GMBenjaminFinegold won on time"]

1. d4 {[%clk 0:03:00.9]} 1... d5 {[%clk 0:02:58.2]} 2. c4 {[%clk 0:03:00.5]}
2... c6 {[%clk 0:02:58.8]} 3. Nf3 {[%clk 0:02:59.7]} 3... Nf6 {[%clk 0:02:59.2]}
4. Nc3 {[%clk 0:02:59.2]} 4... dxc4 {[%clk 0:02:59.8]} 5. e4 {[%clk 0:02:59.3]}
5... b5 {[%clk 0:02:59.5]} 6. e5 {[%clk 0:02:59]} 6... Nd5 {[%clk 0:02:59.5]} 7.
a4 {[%clk 0:02:59.2]} 7... e6 {[%clk 0:03:00.1]} 8. Ng5 {[%clk 0:02:56.7]} 8...
Be7 {[%clk 0:02:56]} 9. h4 {[%clk 0:02:54.9]} 9... h6 {[%clk 0:02:55.3]} 10.
Nge4 {[%clk 0:02:51.4]} 10... b4 {[%clk 0:02:51.3]} 11. Nb1 {[%clk 0:02:41.6]}
11... Ba6 {[%clk 0:02:47.4]} 12. Qg4 {[%clk 0:02:36.1]} 12... Rh7 {[%clk
0:02:29]} 13. Rh3 {[%clk 0:02:33.8]} 13... Qa5 {[%clk 0:02:02]} 14. Nbd2 {[%clk
0:02:28.9]} 14... b3 {[%clk 0:01:45.6]} 15. Be2 {[%clk 0:02:12.8]} 15... Nd7
{[%clk 0:01:44.2]} 16. Kf1 {[%clk 0:02:09.6]} 16... N7b6 {[%clk 0:01:44.6]} 17.
Nd6+ {[%clk 0:01:58.8]} 17... Bxd6 {[%clk 0:01:44.1]} 18. exd6 {[%clk
0:01:59.7]} 18... O-O-O {[%clk 0:01:35.8]} 19. Ne4 {[%clk 0:01:52.6]} 19... c3
{[%clk 0:01:15]} 20. bxc3 {[%clk 0:01:39.9]} 20... Bc4 {[%clk 0:01:06.9]} 21.
Nc5 {[%clk 0:01:19]} 21... Rxd6 {[%clk 0:01:02.8]} 22. Bxc4 {[%clk 0:01:11.2]}
22... Nxc4 {[%clk 0:01:03.7]} 23. Qe2 {[%clk 0:01:10.5]} 23... Ndb6 {[%clk
0:00:51.1]} 24. Bf4 {[%clk 0:01:04.7]} 24... Rd8 {[%clk 0:00:46.7]} 25. Qe4
{[%clk 0:00:56.6]} 25... Nd5 {[%clk 0:00:43.5]} 26. Qxh7 {[%clk 0:00:51]} 26...
Nxf4 {[%clk 0:00:43.1]} 27. Rf3 {[%clk 0:00:48.5]} 27... b2 {[%clk 0:00:42.4]}
28. Rd1 {[%clk 0:00:41.2]} 28... Ng6 {[%clk 0:00:25.9]} 29. Rxf7 {[%clk
0:00:32.1]} 29... Nd2+ {[%clk 0:00:17.8]} 30. Kg1 {[%clk 0:00:28.1]} 30... Nf8
{[%clk 0:00:06]} 31. Qxg7 {[%clk 0:00:25.8]} 31... b1=Q {[%clk 0:00:05.7]} 32.
Rxb1 {[%clk 0:00:25]} 32... Nxb1 {[%clk 0:00:06.6]} 33. Rxf8 {[%clk 0:00:24.6]}
1-0

[Event "*** Titled Tuesday Blitz"]
[Site "Chess.com"]
[Date "2020.05.19"]
[Round "4"]
[White "RaunakSadhwani2005"]
[Black "Alomaterapia"]
[Result "1-0"]
[WhiteElo "2809"]
[BlackElo "2513"]
[TimeControl "180+1"]
[EndTime "12:40:18 PDT"]
[Termination "RaunakSadhwani2005 won by checkmate"]

1. e4 {[%clk 0:03:00.9]} 1... c6 {[%clk 0:02:50.5]} 2. Nc3 {[%clk 0:02:59.4]}
2... d5 {[%clk 0:02:48.8]} 3. Nf3 {[%clk 0:03:00.3]} 3... Nf6 {[%clk 0:02:46.5]}
4. e5 {[%clk 0:03:00.3]} 4... Ne4 {[%clk 0:02:47]} 5. Ne2 {[%clk 0:03:00.2]}
5... Qb6 {[%clk 0:02:47.6]} 6. d4 {[%clk 0:03:00.2]} 6... e6 {[%clk 0:02:48.1]}
7. Ng3 {[%clk 0:02:59.6]} 7... c5 {[%clk 0:02:48.2]} 8. Bd3 {[%clk 0:03:00]}
8... Nxg3 {[%clk 0:02:47.9]} 9. fxg3 {[%clk 0:03:00.9]} 9... cxd4 {[%clk
0:02:48.2]} 10. O-O {[%clk 0:03:00.8]} 10... h6 {[%clk 0:02:47]} 11. g4 {[%clk
0:02:59.1]} 11... Be7 {[%clk 0:02:41.3]} 12. a3 {[%clk 0:02:57.9]} 12... Bd7
{[%clk 0:02:39.2]} 13. Qe2 {[%clk 0:02:56.5]} 13... a6 {[%clk 0:02:38]} 14. b4
{[%clk 0:02:55.3]} 14... Bb5 {[%clk 0:02:37.7]} 15. Bb2 {[%clk 0:02:52.8]} 15...
Nc6 {[%clk 0:02:36.7]} 16. Qf2 {[%clk 0:02:52.3]} 16... Bxd3 {[%clk 0:02:26.7]}
17. cxd3 {[%clk 0:02:53.2]} 17... O-O {[%clk 0:02:20.8]} 18. Bxd4 {[%clk
0:02:23.3]} 18... Qb5 {[%clk 0:02:15.8]} 19. Qe3 {[%clk 0:02:12.8]} 19... Qa4
{[%clk 0:01:52.2]} 20. Bc5 {[%clk 0:02:09.7]} 20... Bxc5 {[%clk 0:01:51.8]} 21.
Qxc5 {[%clk 0:02:10.6]} 21... d4 {[%clk 0:01:49.1]} 22. g5 {[%clk 0:02:05.1]}
22... h5 {[%clk 0:01:47.5]} 23. g6 {[%clk 0:02:03.1]} 23... fxg6 {[%clk
0:01:46.4]} 24. Ng5 {[%clk 0:02:02.5]} 24... Qb3 {[%clk 0:01:46.5]} 25. Qd6
{[%clk 0:01:54.6]} 25... Qd5 {[%clk 0:01:42.2]} 26. Qxd5 {[%clk 0:01:48]} 26...
exd5 {[%clk 0:01:43.1]} 27. e6 {[%clk 0:01:48.8]} 27... Rf5 {[%clk 0:01:38.5]}
28. h4 {[%clk 0:01:47.3]} 28... Kf8 {[%clk 0:01:31.4]} 29. Rxf5+ {[%clk
0:01:27.7]} 29... gxf5 {[%clk 0:01:31.5]} 30. Kf2 {[%clk 0:01:28.6]} 30... Ke7
{[%clk 0:01:31.5]} 31. Kg3 {[%clk 0:01:28.7]} 31... Na7 {[%clk 0:01:08.5]} 32.
Kf4 {[%clk 0:01:25.8]} 32... g6 {[%clk 0:01:03.9]} 33. Rc1 {[%clk 0:01:21.8]}
33... Nc6 {[%clk 0:00:58.4]} 34. Rc5 {[%clk 0:00:52.2]} 34... Rd8 {[%clk
0:00:55.3]} 35. b5 {[%clk 0:00:51.8]} 35... axb5 {[%clk 0:00:51.9]} 36. Rxb5
{[%clk 0:00:52.7]} 36... Ra8 {[%clk 0:00:33.6]} 37. Rxb7+ {[%clk 0:00:51]} 37...
Ke8 {[%clk 0:00:33.2]} 38. Rc7 {[%clk 0:00:43.8]} 38... Nd8 {[%clk 0:00:29.1]}
39. Ke5 {[%clk 0:00:41.5]} 39... Rxa3 {[%clk 0:00:28.4]} 40. Kf6 {[%clk
0:00:41.6]} 40... Rc3 {[%clk 0:00:25.9]} 41. Re7+ {[%clk 0:00:41.4]} 41... Kf8
{[%clk 0:00:25.7]} 42. Nh7+ {[%clk 0:00:38.3]} 42... Kg8 {[%clk 0:00:25.9]} 43.
Kxg6 {[%clk 0:00:35.5]} 43... Nxe6 {[%clk 0:00:21.7]} 44. Re8+ {[%clk
0:00:34.7]} 44... Nf8+ {[%clk 0:00:21.9]} 45. Rxf8# {[%clk 0:00:34.8]} 1-0